[Event "1st Serbian League 2022"]
[Site "Vrnjacka Banja"]
[Date "2022.09.29"]
[Round "10.28"]
[White "Radojicic, Aleksandar M"]
[Black "Savic, Miodrag R"]
[Result "1/2-1/2"]
[ECO "D00"]
[WhiteElo "2192"]
[BlackElo "2406"]
[Annotator "TA"]
[PlyCount "69"]
[EventDate "2022.09.20"]
[EventType "team-tourn"]
[EventCountry "SRB"]
[SourceTitle "playchess.com"]
[Source "ChessBase"]
[SourceQuality "1"]
[TimeControl "40/5400+30:1800+30"]

{[%evp 9,69,-15,-9,-13,-9,-12,-5,0,0,0,0,4,3,7,0,0,1,-34,-12,-3,-8,-52,-22,-24,-26,-28,-25,-30,-28,-21,-1,0,0,0,120,99,107,104,103,98,105,101,100,109,102,86,108,87,112,87,90,47,56,56,43,0,0,0,4,0,12,0]} 1. d4 {[%emt 0:00:02]} Nf6 {[%emt 0:00:04]} 2. Nc3 {[%emt 0:00:07]} d5 {[%emt 0:00:23]} 3. Bf4 {[%emt 0:00:05]} a6 {[%emt 0:00:12]} 4. e3 {[%emt 1:32:16]} b5 {[%emt 0:01:57]} 5. h4 {[%emt 0:00:00]} h6 {[%emt 0:02:16]} 6. Bd3 {[%emt 0:00:00] D00: 1 d4 d5: Unusual lines.} e6 {[%emt 0:01:46] [#]} 7. Nce2 $146 {[%emt 0:00:00]} ({Predecessor:} 7. Nf3 c5 8. dxc5 Bxc5 9. a4 b4 10. Ne2 Nc6 11. Ned4 Bb7 12. Nxc6 Bxc6 13. Ne5 {1-0 (43) Cabarkapa,N (2466)-Ivanovic,M (2294) Paracin 2022}) 7... c5 {[%emt 0:01:04] [#] Threatens to win with ...c4.} 8. c3 {[%emt 0:00:00]} Nc6 {[%emt 0:02:18]} 9. Nf3 {[%emt 0:00:00]} Bb7 {[%emt 0:00:37]} 10. O-O {[%emt 0:00:00]} c4 {[%emt 0:01:37]} 11. Bc2 {[%emt 0:00:00]} Be7 {[%emt 0:19:44]} 12. Ng3 {[%emt 0:00:00]} O-O {[%emt 0:02:06]} 13. Qd2 {[%emt 0:00:00]} Ng4 {[%emt 0:04:44]} (13... Ne4 $5 {[%cal Re4d2]} 14. Qe2 (14. Nxe4 dxe4 15. Bxe4 Nxd4 $15) 14... f5 $15) 14. h5 {[%emt 0:00:00]} f5 {[%emt 0:02:22]} 15. Ne5 {[%emt 0:00:00]} Ngxe5 {[%emt 0:05:32]} 16. Bxe5 {[%emt 0:00:00]} Nxe5 {[%emt 0:18:56]} 17. dxe5 {[%emt 0:00:00]} Qe8 {[%emt 0:01:27]} 18. Bd1 {[%emt 0:00:00]} Bc5 {[%emt 0:09:08]} 19. f4 {[%emt 0:00:00]} Ra7 {[%emt 0:08:32]} 20. Bf3 {[%emt 0:00:00]} Bc8 {[%emt 0:00:38]} 21. Ne2 {[%emt 0:00:00]} g5 {[%emt 0:02:09] [#]} (21... a5 $11) 22. hxg6 $1 $16 {[%emt 0:00:00]} Qxg6 {[%emt 0:00:02]} 23. Kf2 {[%emt 0:00:00]} Rh7 {[%emt 0:01:03]} 24. Rh1 {[%emt 0:00:00][%cal Bf1h1,Bh1h3,Bh3g3][%mdl 32]} h5 {[%emt 0:00:01]} 25. Rh3 {[%emt 0:00:00] Rg3 is the strong threat.} h4 {[%emt 0:03:29] Against Rg3} 26. g3 {[%emt 0:00:00][%cal Bg2g3,Bg3h4,Bh4h5][%mdl 32]} Kh8 {[%emt 0:00:55]} 27. gxh4 {[%emt 0:00:00]} Rg8 {[%emt 0:00:33]} 28. Rg1 {[%emt 0:00:00] Really sharp!} Qf7 {[%emt 0:00:01]} 29. Rxg8+ {[%emt 0:01:07]} Qxg8 {[%emt 0:00:02]} 30. Rg3 {[%emt 0:00:37]} Qd8 {[%emt 0:02:32]} 31. h5 {[%emt 0:01:41]} Qh4 {[%emt 0:01:39]} 32. Qc1 {[%emt 0:00:48]} Qh2+ {[%emt 0:01:21] The position is equal.} 33. Rg2 {[%emt 0:01:01]} Qh4+ {[%emt 0:00:02]} 34. Rg3 {[%emt 0:00:01]} Qh2+ {[%emt 0:00:16]} 35. Rg2 {[%emt 0:04:02] Weighted Error Value: White=0.09 (flawless) /Black=0.11 (very precise)} 1/2-1/2

[Event "1st Serbian League 2022"]
[Site "Vrnjacka Banja"]
[Date "2022.09.29"]
[Round "10.30"]
[White "Radivojevic, Milan R"]
[Black "Lukovic, Vladimir"]
[Result "0-1"]
[ECO "D02"]
[WhiteElo "2172"]
[BlackElo "2419"]
[Annotator "TA"]
[PlyCount "92"]
[EventDate "2022.09.20"]
[EventType "team-tourn"]
[EventCountry "SRB"]
[SourceTitle "playchess.com"]
[Source "ChessBase"]
[SourceQuality "1"]
[TimeControl "40/5400+30:1800+30"]

{[%evp 10,92,0,-10,0,-3,0,0,0,2,26,-26,-29,-18,-18,-35,-12,-7,-3,-27,-7,-12,0,-20,0,-21,-25,-29,-25,-35,0,-45,-50,-89,-85,-87,-91,-127,-126,-131,-121,-141,-133,-147,-143,-400,-381,-375,-348,-355,-302,-293,-259,-286,-219,-241,-198,-162,-51,-218,-68,-199,-176,-173,-180,-175,-183,-283,-263,-458,-454,-709,-695,-884,-833,-831,-949,-872,-804,-12831,-12829,-12836,-12837,-12836,-11621]} 1. d4 {[%emt 0:04:00]} Nf6 {[%emt 0:00:34]} 2. Nf3 {[%emt 0:00:16]} d5 {[%emt 0:00:23]} 3. Bf4 {[%emt 0:00:11]} c5 {[%emt 0:00:39]} 4. c3 {[%emt 0:00:26]} Qb6 {[%emt 0:00:26]} 5. Qc2 {[%emt 0:02:09]} Nc6 {[%emt 0:02:28]} 6. e3 {[%emt 0:00:42]} g6 $1 {[%emt 0:00:19] 6...g6 is better than 6...Bf5. D02: 1 d4 d5 2 Nf3 sidelines, including 2...Nf6 3 g3 and 2...Nf6 3 Bf4.} 7. Nbd2 {[%emt 0:03:33][%cal Bb1d2,Bd2b3,Bb3d4][%mdl 32]} Bg7 {[%emt 0:00:35]} 8. h3 {[%emt 0:07:32]} O-O {[%emt 0:02:12] The position is equal.} 9. Be2 {[%emt 0:01:41]} Bf5 {[%emt 0:02:01]} 10. dxc5 {[%emt 0:05:31]} (10. Qb3 $142) 10... Qxc5 $11 {[%emt 0:00:19] [#]} 11. Qa4 $146 {[%emt 0:02:42]} ({Predecessor:} 11. Qb3 Na5 12. Qa4 Bd7 13. Qd4 Qc8 14. Qb4 Nc6 15. Qb3 Na5 16. Qa3 Nc6 17. O-O {1-0 (54) Le,T (2512)-Asgarizadeh,A (2428) Chess.com INT 2018}) 11... a6 {[%emt 0:02:49]} 12. Nb3 {[%emt 0:02:51]} Qa7 {[%emt 0:11:05]} 13. Nbd4 {[%emt 0:00:48]} Bd7 {[%emt 0:08:26][%cal Oe7e5] [#] And now ...e5! would win.} 14. Qa3 {[%emt 0:11:09]} Rfe8 {[%emt 0:02:23]} 15. Ne5 {[%emt 0:06:09]} e6 {[%emt 0:03:40]} 16. Ndxc6 {[%emt 0:08:19]} Bxc6 {[%emt 0:01:57]} 17. Nxc6 {[%emt 0:03:55]} bxc6 {[%emt 0:00:15]} 18. Be5 {[%emt 0:00:13]} Bf8 {[%emt 0:04:18]} 19. Bd6 {[%emt 0:01:02]} Bh6 {[%emt 0:01:40]} 20. O-O {[%emt 0:04:25]} Ne4 {[%emt 0:02:25][%cal Oh6e3]} 21. Bd3 {[%emt 0:06:00]} Nxd6 {[%emt 0:01:16] Black is more active.} 22. Qxd6 {[%emt 0:00:19]} Qb6 {[%emt 0:05:15]} 23. Qe5 {[%emt 0:13:54]} Bg7 {[%emt 0:03:00]} 24. Qd6 {[%emt 0:02:15]} Qxb2 {[%emt 0:01:21]} 25. Qxc6 {[%emt 0:01:04]} Rec8 $36 {[%emt 0:00:43][%mdl 2048] Keeping White busy.} ({Worse is} 25... Qxc3 26. Qxc3 Bxc3 27. Rac1 $17) 26. Qd7 {[%emt 0:04:38]} Qxc3 {[%emt 0:01:00]} 27. Rac1 $2 {[%emt 0:00:35][%mdl 8192]} (27. Rad1 $17) 27... Qxc1 $19 {[%emt 0:00:43]} 28. Rxc1 {[%emt 0:00:01]} Rxc1+ {[%emt 0:00:03]} 29. Kh2 {[%emt 0:00:04]} Be5+ {[%emt 0:02:34]} 30. f4 {[%emt 0:01:42]} Rc7 {[%emt 0:00:39]} 31. Qa4 {[%emt 0:00:02]} Bd6 {[%emt 0:00:24]} 32. h4 {[%emt 0:01:25]} h5 {[%emt 0:03:39]} 33. Qd4 {[%emt 0:02:19]} Rc6 {[%emt 0:19:33] Inhibits Qb6.} (33... Rb7 $19 {Hoping for ...Rab8.} 34. Qa4 Rab8 35. Qxa6 Be7) 34. Qa4 $2 {[%emt 0:02:56]} (34. Qf6 $15) 34... Rb6 {[%emt 0:03:17]} ({Black should play} 34... Rac8 $19 {Strongly threatening ...Be7.} 35. Bxa6 R8c7) 35. Qd7 {[%emt 0:01:14]} (35. Qc2 $1 $15) 35... Bc5 {[%emt 0:00:54]} 36. e4 {[%emt 0:00:39] [#]} dxe4 $1 {[%emt 0:00:59]} 37. Bxe4 {[%emt 0:00:10]} Rab8 {[%emt 0:00:26]} 38. Kh3 {[%emt 0:01:20]} (38. Qd3 {keeps fighting.}) 38... Bf8 {[%emt 0:01:17]} 39. Bc2 $2 {[%emt 0:01:08]} (39. Qc7) 39... Rd6 {[%emt 0:01:12] Black is clearly winning.} 40. Qa7 {[%emt 0:00:38]} (40. Qa4 $142) 40... Rb2 {[%emt 0:01:43][%csl LRa2,LRc2]} 41. Bb3 {[%emt 0:05:32]} Rd3+ {[%emt 0:06:23]} 42. Kh2 {[%emt 0:00:03]} Bd6 {[%emt 0:06:25]} 43. Qa8+ {[%emt 0:07:45]} Kh7 {[%emt 0:02:23]} 44. Kg1 {[%emt 0:05:27]} Bxf4 {[%emt 0:01:43] ( -> ...Rb1+)} 45. Qe4 {[%emt 0:01:49]} Rb1+ {[%emt 0:00:38]} 46. Kf2 {[%emt 0:00:10]} Rd2+ {[%emt 0:00:15] Weighted Error Value: White=0.66/Black=0.17 (very precise)} 0-1

[Event "1st Serbian League 2022"]
[Site "Vrnjacka Banja"]
[Date "2022.09.29"]
[Round "10.32"]
[White "Popovic, Dusan"]
[Black "Perunovic, Milos"]
[Result "1/2-1/2"]
[WhiteElo "2486"]
[BlackElo "2542"]
[Annotator "TA"]
[PlyCount "37"]
[EventDate "2022.09.20"]
[EventType "team-tourn"]
[EventCountry "SRB"]
[SourceTitle "playchess.com"]
[Source "ChessBase"]
[SourceQuality "1"]
[TimeControl "40/5400+30:1800+30"]

{[%evp 15,16,-16,-8]} 1. Nf3 {[%emt 0:00:03] ChessBase II} Nf6 {[%emt 0:00:07]} 2. g3 {[%emt 0:00:03]} d5 {[%emt 0:00:05]} 3. Bg2 {[%emt 0:00:05]} e6 {[%emt 0:00:05]} 4. O-O {[%emt 0:00:05]} Be7 {[%emt 0:00:03]} 5. d3 {[%emt 0:00:03]} O-O {[%emt 0:00:06]} 6. Nbd2 {[%emt 0:00:03]} c5 {[%emt 0:00:07]} 7. e4 {[%emt 0:00:04]} Nc6 {[%emt 0:00:05]} 8. Re1 {[%emt 0:00:05]} Rb8 {[%emt 0:00:05] [#]} {Predecessor:} 9. e5 $146 {C00: French: Unusual White 2nd moves.} Nd7 10. Nf1 b5 11. h4 d4 12. Bf4 Bb7 13. N1h2 c4 14. dxc4 bxc4 15. Nxd4 Nxd4 16. Qxd4 Bxg2 17. Kxg2 Nb6 18. Qxd8 Rfxd8 19. b3 {½-½ (41) Bailet,P (2528)-Stany,G (2491) Sautron 2017 CBM 181 Extra [ChessBase II]} 1/2-1/2

[Event "1st Serbian League 2022"]
[Site "Vrnjacka Banja"]
[Date "2022.09.29"]
[Round "10.33"]
[White "Miljkovic, Miroslav D"]
[Black "Boskovic, Drasko"]
[Result "1/2-1/2"]
[WhiteElo "2456"]
[BlackElo "2415"]
[Annotator "TA"]
[PlyCount "42"]
[EventDate "2022.09.20"]
[EventType "team-tourn"]
[EventCountry "SRB"]
[SourceTitle "playchess.com"]
[Source "ChessBase"]
[SourceQuality "1"]
[TimeControl "40/5400+30:1800+30"]

{[%evp 13,14,37,23]} 1. e4 {[%emt 0:00:04]} c5 {[%emt 0:00:02]} 2. Nf3 {[%emt 0:00:06]} Nc6 {[%emt 0:00:06]} 3. Bb5 {[%emt 0:00:10]} d6 {[%emt 0:00:03]} 4. O-O {[%emt 0:00:10]} Bd7 {[%emt 0:00:02]} 5. Re1 {[%emt 0:00:13]} Nf6 {[%emt 0:00:04]} 6. c3 {[%emt 0:00:11]} a6 {[%emt 0:00:03]} 7. Bf1 {[%emt 0:00:09]} Bg4 {[%emt 0:00:06] [#]} {Predecessor:} 8. d4 $146 {B51: Sicilian: Moscow Variation (3 Bb5+) without 3...Bd7.} Bxf3 9. gxf3 cxd4 10. cxd4 e6 11. Nc3 d5 12. Bg5 Be7 13. Bxf6 Bxf6 14. exd5 Nxd4 15. Re4 Nf5 16. dxe6 O-O 17. exf7+ Kh8 18. Qd5 Nd6 19. Re6 Nxf7 20. f4 Bxc3 21. Qxd8 Nxd8 {0-1 (21) Giri,A (2761)-Xiong,J (2688) Chess.com INT 2022} 1/2-1/2

[Event "1st Serbian League 2022"]
[Site "Vrnjacka Banja"]
[Date "2022.09.29"]
[Round "10.34"]
[White "Zegarac, Vuk"]
[Black "Kosic, Dragan"]
[Result "1/2-1/2"]
[WhiteElo "2336"]
[BlackElo "2399"]
[Annotator "TA"]
[PlyCount "36"]
[EventDate "2022.09.20"]
[EventType "team-tourn"]
[EventCountry "SRB"]
[SourceTitle "playchess.com"]
[Source "ChessBase"]
[SourceQuality "1"]
[TimeControl "40/5400+30:1800+30"]

{[%evp 13,17,6,37,25,25,29]} 1. d4 {[%emt 0:00:03]} d5 {[%emt 0:00:04]} 2. Nc3 {[%emt 0:00:07]} e6 {[%emt 0:00:06]} 3. Nf3 {[%emt 0:00:07]} Nf6 {[%emt 0:00:04]} 4. Bg5 {[%emt 0:00:08]} Be7 {[%emt 0:00:05]} 5. Bxf6 {[%emt 0:00:07]} Bxf6 {[%emt 0:00:06]} 6. e4 {[%emt 0:00:07]} dxe4 {[%emt 0:00:10]} 7. Nxe4 {[%emt 0:00:07]} Bd7 {[%emt 0:00:11]} 8. c3 {[%emt 0:00:09] C13: French: Classical System: 4 Bg5 Be7, Alekhine-Chatard Attack.} Bc6 {[%emt 0:00:08]} 9. Bd3 {[%emt 0:00:07] [#] An uneventful encounter.} {Predecessor:} Bxe4 $146 10. Bxe4 c6 11. Qb3 Qc7 12. O-O-O Nd7 13. Rhe1 h6 14. g3 O-O 15. h4 b5 16. Qc2 a5 17. Qe2 Rab8 18. Bc2 Rfd8 {1-0 (32) Bortnyk,O (2604)-Nyzhnyk,I (2692) Chess.com INT 2022} 1/2-1/2

[Event "1st Serbian League 2022"]
[Site "Vrnjacka Banja"]
[Date "2022.09.29"]
[Round "10.35"]
[White "Laketic, Gojko"]
[Black "Munizaba, Slobodan"]
[Result "1/2-1/2"]
[WhiteElo "2255"]
[BlackElo "2416"]
[Annotator "TA"]
[PlyCount "30"]
[EventDate "2022.09.20"]
[EventType "team-tourn"]
[EventCountry "SRB"]
[SourceTitle "playchess.com"]
[Source "ChessBase"]
[SourceQuality "1"]
[TimeControl "40/5400+30:1800+30"]

{[%evp 9,17,23,19,22,26,0,12,0,7,0]} 1. e4 {[%emt 0:00:04]} e5 {[%emt 0:00:26]} 2. Nf3 {[%emt 0:00:10]} Nc6 {[%emt 0:00:14]} 3. Bc4 {[%emt 0:00:19]} Nf6 {[%emt 0:00:21]} 4. d3 {[%emt 0:00:14]} Bc5 {[%emt 0:00:10]} 5. c3 {[%emt 0:00:13]} d6 {[%emt 0:00:16]} 6. a4 {[%emt 0:00:29] Strongly threatening b4. C54: Giuoco Piano: 4 c3 Nf6, main lines with 5 d4 and 5 d3.} a5 {[%emt 0:00:06] Prevents b4.} 7. Nbd2 {[%emt 0:00:23]} O-O {[%emt 0:00:09]} 8. O-O {[%emt 0:00:02]} h6 {[%emt 0:00:11]} 9. h3 {[%emt 0:00:02] [#] Not much happened in this game.  Weighted Error Value: White=0.12 (very precise) /Black=0.04 (flawless)} {Predecessor:} Re8 $146 10. Re1 Be6 11. Qc2 d5 12. Bb5 Bd6 13. Nf1 Nd7 14. Ne3 dxe4 15. dxe4 Nc5 {0-1 (51) Demchenko,A (2654)-Sanal,V (2601) Chess.com INT 2022} 1/2-1/2

[Event "1st Serbian League 2022"]
[Site "Vrnjacka Banja"]
[Date "2022.09.29"]
[Round "10.36"]
[White "Krstic, Petar"]
[Black "Kosanovic, Goran A"]
[Result "1/2-1/2"]
[WhiteElo "2290"]
[BlackElo "2244"]
[Annotator "TA"]
[PlyCount "39"]
[EventDate "2022.09.20"]
[EventType "team-tourn"]
[EventCountry "SRB"]
[SourceTitle "playchess.com"]
[Source "ChessBase"]
[SourceQuality "1"]
[TimeControl "40/5400+30:1800+30"]

{[%evp 14,15,0,5]} 1. Nf3 {[%emt 0:00:04]} d5 {[%emt 0:00:22]} 2. g3 {[%emt 0:00:08]} Nf6 {[%emt 0:00:39]} 3. Bg2 {[%emt 0:00:17]} c6 {[%emt 0:00:12]} 4. O-O {[%emt 0:00:21]} Bf5 {[%emt 0:00:10]} 5. b3 {[%emt 0:00:44]} Nbd7 {[%emt 0:00:07]} 6. Bb2 {[%emt 0:00:11]} e6 {[%emt 0:00:08]} 7. c4 {[%emt 0:00:17]} Be7 {[%emt 0:00:05]} 8. d3 {[%emt 0:00:10] [#]} {Predecessor:} h6 $146 {A12: English Opening: 1...c6 with b3 by White.} 9. Nbd2 O-O 10. Qc2 Bh7 11. a3 a5 12. Ne5 Nxe5 13. Bxe5 Bd6 14. Qb2 Bxe5 15. Qxe5 Nd7 16. Qb2 Qf6 17. Qxf6 Nxf6 18. b4 axb4 19. axb4 Rfc8 20. Nb3 {½-½ (42) Rozum,I (2573)-Ponkratov,P (2622) Chennai 2020} 1/2-1/2